bitfinex-derivatives/quotes_ETHF0:USTF0_20260125
["timestamp","ask_amount","ask_price","bid_price","bid_amount"]
[1769318246447,0.14512593,2949.9,2948.7,0.7819752]
[1769318247444,0.16971,2950.8,2948.7,0.9517952]
[1769318247742,0.14867197,2950.4,2948.7,0.9517952]
[1769318247942,4.18843098,2950.3,2948.7,0.9517952]
[1769318248144,4.18843098,2950.2,2948.7,0.9517952]
[1769318248345,4.03975901,2950.1,2948.7,0.9517952]
[1769318248536,4.03975901,2950.0,2948.7,0.9517952]
[1769318248736,0.14867197,2950.2,2948.7,0.9517952]
[1769318248937,4.03909066,2950.1,2948.7,0.9517952]
[1769318249144,0.14867197,2950.2,2948.7,0.9517952]
[1769318249346,4.03857599,2950.1,2948.7,0.9517952]
[1769318249545,0.14867197,2950.2,2948.7,0.9517952]
[1769318249746,4.03857619,2950.1,2948.7,0.9517952]
[1769318249942,0.14867197,2950.2,2948.7,1.09472285]
[1769318250148,4.03857932,2950.1,2948.7,1.09472285]
[1769318250345,0.14867197,2950.2,2948.7,1.09472285]
[1769318250645,4.03823165,2950.1,2948.7,1.09472285]
[1769318250843,0.14867197,2950.2,2948.7,1.09472285]
[1769318251043,4.03831634,2950.1,2948.7,1.09472285]
[1769318251243,0.14867197,2950.2,2948.7,1.09472285]
[1769318251447,4.03803741,2950.1,2948.7,1.09472285]
[1769318251646,0.14867197,2950.2,2948.7,1.09472285]
[1769318251950,4.03803861,2950.1,2948.7,1.09472285]
[1769318252141,0.14867197,2950.2,2948.7,1.09472285]
[1769318252341,4.03780776,2950.1,2948.7,1.09472285]
[1769318252541,0.14867197,2950.2,2948.7,1.09472285]
[1769318252837,4.03795677,2950.1,2948.7,1.09472285]
[1769318253041,0.14867197,2950.2,2948.7,1.09472285]
[1769318253247,4.0377921,2950.1,2948.7,1.09472285]
[1769318253445,0.14867197,2950.2,2948.7,1.09472285]
[1769318253641,4.03779258,2950.1,2948.7,1.09472285]
[1769318253842,0.14867197,2950.2,2948.7,1.09472285]
[1769318254045,4.03789278,2950.1,2948.7,1.09472285]
[1769318254245,0.14867197,2950.2,2948.7,1.09472285]
[1769318254447,4.03774722,2950.1,2948.7,1.09472285]
[1769318254744,0.14867197,2950.2,2948.7,1.09472285]
[1769318254947,4.03756477,2950.1,2948.7,1.09472285]
[1769318255246,0.14867197,2950.2,2948.7,1.09472285]
[1769318255446,4.03745512,2950.1,2948.7,1.09472285]
[1769318255645,0.14867197,2950.2,2948.7,1.09472285]
[1769318255846,4.03745428,2950.1,2948.7,1.09472285]
[1769318256047,0.14867197,2950.2,2948.7,1.09472285]
[1769318256248,4.03734566,2950.1,2948.7,1.09472285]
[1769318256449,0.14867197,2950.2,2948.7,1.09472285]
[1769318256650,4.03729789,2950.1,2948.7,1.09472285]
[1769318256846,0.14867197,2950.2,2948.7,1.09472285]
[1769318257050,4.03729906,2950.1,2948.7,1.09472285]
[1769318257252,0.14867197,2950.2,2948.7,1.09472285]
[1769318257450,4.03722224,2950.1,2948.7,1.09472285]
[1769318257651,0.14867197,2950.2,2948.7,1.09472285]
[1769318257948,4.03722448,2950.1,2948.7,1.09472285]
[1769318258148,0.13837316,2950.1,2948.7,1.09472285]
[1769318272171,4.0380767,2950.0,2948.7,1.09472285]
[1769318272469,0.13837316,2950.1,2948.7,1.09472285]
[1769318272663,4.0380719,2950.0,2948.7,1.09472285]
[1769318272864,0.13837316,2950.1,2948.7,1.09472285]
[1769318273170,4.03807177,2950.0,2948.7,1.09472285]
[1769318273370,0.13837316,2950.1,2948.7,1.09472285]
[1769318273669,4.03823235,2950.0,2948.7,1.09472285]
[1769318273868,0.13837316,2950.1,2948.7,1.09472285]
[1769318274061,4.03823116,2950.0,2948.7,1.09472285]
[1769318274258,0.13837316,2950.1,2948.7,1.09472285]
[1769318274465,4.03846245,2950.0,2948.7,1.09472285]
[1769318274659,0.13837316,2950.1,2948.7,1.09472285]
[1769318274865,4.03846324,2950.0,2948.7,1.09472285]
[1769318275071,0.13837316,2950.1,2948.7,1.09472285]
[1769318275271,4.03878785,2950.0,2948.7,1.09472285]
[1769318275472,0.13837316,2950.1,2948.7,1.09472285]
[1769318275672,4.03878449,2950.0,2948.7,1.09472285]
[1769318275973,0.13837316,2950.1,2948.7,1.09472285]
[1769318276271,4.03878896,2950.0,2948.7,1.09472285]
[1769318276468,0.13837316,2950.1,2948.7,1.09472285]
[1769318276768,4.03920534,2950.0,2948.7,1.09472285]
[1769318276968,0.13837316,2950.1,2948.7,1.09472285]
[1769318277163,4.03920441,2950.0,2948.7,1.09472285]
[1769318277370,0.13837316,2950.1,2948.7,1.09472285]
[1769318277667,4.03998731,2950.0,2948.7,1.09472285]
[1769318277869,0.13837316,2950.1,2948.7,1.09472285]
[1769318278070,4.03999298,2950.0,2948.7,1.09472285]
[1769318278269,0.13837316,2950.1,2948.7,1.09472285]
[1769318278470,4.03999093,2950.0,2948.7,1.09472285]
[1769318278674,0.13837316,2950.1,2948.7,1.09472285]
[1769318278972,4.0399915,2950.0,2948.7,1.09472285]
[1769318279173,0.13837316,2950.1,2948.7,1.09472285]
[1769318279373,4.03998963,2950.0,2948.7,1.09472285]
[1769318279574,0.13837316,2950.1,2948.7,1.09472285]
[1769318279775,4.03997598,2950.0,2948.7,1.09472285]
[1769318279977,0.13837316,2950.1,2948.7,1.09472285]
[1769318280174,4.03997774,2950.0,2948.7,1.09472285]
[1769318280374,0.13837316,2950.1,2948.7,1.09472285]
[1769318280578,4.03997483,2950.0,2948.7,1.09472285]
[1769318280766,0.13837316,2950.1,2948.7,1.09472285]
[1769318280971,4.03997523,2950.0,2949.2,0.78171799]
[1769318281171,0.13837316,2950.1,2949.2,0.78171799]
[1769318281466,4.03997302,2950.0,2949.2,0.78171799]
[1769318281769,0.13837316,2950.1,2949.2,0.78171799]
[1769318281971,0.13837316,2949.9,2949.0,0.78171799]
[1769318282570,0.13837316,2949.9,2948.8,0.78171799]
[1769318340505,4.18899158,2949.8,2948.6,0.78171799]
[1769318340708,0.93040013,2949.8,2948.6,0.78171799]
[1769318342809,0.15013387,2949.7,2948.5,0.00250521]
[1769318343009,0.15013387,2949.4,2948.5,0.00250521]
[1769318347919,0.15013387,2949.2,2947.9,3.395]
[1769318348715,0.15013387,2949.2,2947.9,3.3979104]
[1769318355217,0.15013387,2949.2,2947.9,0.0029104]
[1769318356117,0.1378334,2949.0,2947.9,0.0029104]
[1769318361927,2.1298334,2949.0,2947.9,0.0029104]
[1769318371334,4.04366585,2948.9,2947.9,0.0029104]
[1769318371634,2.1298334,2949.0,2947.9,0.0029104]
[1769318371833,4.04366585,2948.9,2947.9,0.0029104]
[1769318372030,2.1298334,2949.0,2947.9,0.0029104]
[1769318372231,4.04366585,2948.9,2947.9,0.0029104]
[1769318372430,2.1298334,2949.0,2947.9,0.0029104]
[1769318372631,4.04560398,2948.9,2947.9,0.0029104]
[1769318372833,2.1298334,2949.0,2947.9,0.0029104]
[1769318373136,4.04560398,2948.9,2947.9,0.0029104]
[1769318373434,2.1298334,2949.0,2947.9,0.0029104]
[1769318373736,4.04599672,2948.9,2947.9,0.0029104]
[1769318373924,0.13757081,2948.9,2947.9,0.0029104]
[1769318377339,4.04805026,2948.8,2947.9,0.0029104]
[1769318377638,0.13757081,2948.9,2947.9,0.0029104]
[1769318377941,4.04812977,2948.8,2947.9,0.0029104]
[1769318378144,0.13757081,2948.9,2947.9,0.0029104]
[1769318378444,4.04812977,2948.8,2947.9,0.0029104]
[1769318378638,0.13757081,2948.9,2947.9,0.0029104]
[1769318378832,4.04845155,2948.8,2947.9,0.0029104]
[1769318379031,0.13757081,2948.9,2947.9,0.0029104]
[1769318379232,4.04845155,2948.8,2947.9,0.0029104]
[1769318379431,0.13757081,2948.9,2947.9,0.0029104]
[1769318379638,4.04883195,2948.8,2947.9,0.0029104]
[1769318379838,0.13757081,2948.9,2947.9,0.0029104]
[1769318380038,4.04883195,2948.8,2947.9,0.0029104]
[1769318380239,0.13757081,2948.9,2947.9,0.0029104]
[1769318380440,4.04928636,2948.8,2947.9,0.0029104]
[1769318380641,0.13757081,2948.9,2947.9,0.0029104]
[1769318380942,4.04928624,2948.8,2947.9,0.0029104]
[1769318381141,0.13757081,2948.9,2947.9,0.0029104]
[1769318381342,4.04936909,2948.8,2947.9,0.0029104]
[1769318381542,0.13757081,2948.9,2947.9,0.0029104]
[1769318381843,4.04954812,2948.8,2947.9,0.0029104]
[1769318382043,0.13757081,2948.9,2947.9,0.0029104]
[1769318382244,4.04954812,2948.8,2947.9,0.0029104]
[1769318382445,0.13757081,2948.9,2947.9,0.0029104]
[1769318382640,4.05020325,2948.8,2947.9,0.0029104]
[1769318382840,0.13757081,2948.9,2947.9,0.0029104]
[1769318383042,4.05020325,2948.8,2947.9,0.0029104]
[1769318383347,0.13757081,2948.9,2947.9,0.0029104]
[1769318383550,4.05103151,2948.8,2947.9,0.0029104]
[1769318383743,0.13757081,2948.9,2947.9,0.0029104]
[1769318384045,4.05103149,2948.8,2947.9,0.0029104]
[1769318384238,4.05216931,2948.7,2947.9,0.0029104]
[1769318384438,0.13757081,2948.9,2947.9,0.0029104]
[1769318384644,4.05216931,2948.8,2947.9,0.0029104]
[1769318384846,4.05216931,2948.7,2947.9,0.0029104]
[1769318385046,0.13757081,2948.9,2947.9,0.0029104]
[1769318385247,4.05216931,2948.8,2947.9,0.0029104]
[1769318385544,4.05216931,2948.7,2947.9,0.0029104]
[1769318385844,0.13757081,2948.9,2947.9,0.0029104]
[1769318386040,4.05446412,2948.8,2947.9,0.0029104]
[1769318386241,4.05446412,2948.7,2947.9,0.0029104]
[1769318386446,0.13757081,2948.9,2947.9,0.0029104]
[1769318386647,4.19224667,2948.8,2947.9,0.0029104]
[1769318386847,4.05467586,2948.7,2947.9,0.0029104]
[1769318387048,0.13757081,2948.8,2947.9,0.0029104]
[1769318387245,4.05467586,2948.7,2947.9,0.0029104]
[1769318387446,0.13757081,2948.8,2947.9,0.0029104]
[1769318387650,4.05510452,2948.7,2947.9,0.0029104]
[1769318387842,2.12957081,2948.8,2947.9,0.0029104]
[1769318388148,4.0550009,2948.7,2947.9,0.0029104]
[1769318388346,2.12957081,2948.8,2947.9,0.0029104]
[1769318388646,4.05485882,2948.7,2947.9,0.0029104]
[1769318388848,2.12957081,2948.8,2947.9,0.0029104]
[1769318389037,4.05485887,2948.7,2947.9,0.0029104]
[1769318389241,2.12957081,2948.8,2947.9,0.0029104]
[1769318389443,4.05477971,2948.7,2947.9,0.0029104]
[1769318389749,2.12957081,2948.8,2947.9,0.0029104]
[1769318390044,4.05477971,2948.7,2947.9,0.0029104]
[1769318390244,2.12957081,2948.8,2947.9,0.0029104]
[1769318390451,4.05472552,2948.7,2947.9,0.0029104]
[1769318390649,2.12957081,2948.8,2947.9,0.0029104]
[1769318390852,4.05472434,2948.7,2947.9,0.0029104]
[1769318391055,2.12957081,2948.8,2947.9,0.0029104]
[1769318391354,4.05472475,2948.7,2947.9,0.0029104]
[1769318391544,2.12957081,2948.8,2947.9,0.0029104]
[1769318391744,4.05468489,2948.7,2947.9,0.0029104]
[1769318392046,2.12957081,2948.8,2947.9,0.0029104]
[1769318392248,4.05468509,2948.7,2947.9,0.0029104]
[1769318392453,2.12957081,2948.8,2947.9,0.0029104]
[1769318392654,4.05464887,2948.7,2947.9,0.0029104]
[1769318392855,2.12957081,2948.8,2947.9,0.0029104]
[1769318393153,4.05464901,2948.7,2947.9,0.0029104]
[1769318393347,2.12957081,2948.8,2947.9,0.0029104]
[1769318393545,4.05461287,2948.7,2947.9,0.0029104]
[1769318393847,2.12957081,2948.8,2947.9,0.0029104]
[1769318394049,4.05461317,2948.7,2947.9,0.0029104]
[1769318394348,2.12957081,2948.8,2947.9,0.0029104]
[1769318394547,4.05458311,2948.7,2947.9,0.0029104]
[1769318394747,2.12957081,2948.8,2947.9,0.0029104]
[1769318394955,4.05458311,2948.7,2947.9,0.0029104]
[1769318395155,2.12957081,2948.8,2947.9,0.0029104]
[1769318395457,4.05458311,2948.7,2947.9,0.0029104]
[1769318395755,0.13757081,2948.8,2947.9,0.0029104]
[1769318395950,4.05455778,2948.7,2947.9,0.0029104]
[1769318396150,2.12957081,2948.8,2947.9,0.0029104]
[1769318396354,4.05455725,2948.7,2947.9,0.0029104]
[1769318396549,2.12957081,2948.8,2947.9,0.0029104]
[1769318396748,4.05453335,2948.7,2947.9,0.0029104]
[1769318396952,2.12957081,2948.8,2947.9,0.0029104]
[1769318397255,4.05453322,2948.7,2947.9,0.0029104]
[1769318397458,2.12957081,2948.8,2947.9,0.0029104]
[1769318397659,4.0545119,2948.7,2947.9,0.0029104]
[1769318397853,2.12957081,2948.8,2947.9,0.0029104]
[1769318398161,4.19208272,2948.7,2947.9,0.0029104]
[1769318398359,0.13757081,2948.7,2947.9,0.0029104]
[1769318400456,0.13757081,2948.6,2947.9,0.0029104]
[1769318409271,0.13757081,2948.6,2947.6,0.78254377]
[1769318409673,0.13757081,2948.6,2947.4,0.78254377]
[1769318410368,0.13757081,2948.6,2947.4,0.7859479]
[1769318415474,0.13757081,2948.6,2947.6,0.78254377]
[1769318423984,0.13757081,2948.6,2947.4,0.7859479]
[1769318433380,0.13757081,2948.6,2947.6,0.78254377]
[1769318458910,1.992,2948.8,2947.6,0.78254377]
[1769318459110,4.05071183,2948.7,2947.6,0.78254377]
[1769318459312,4.05071183,2948.6,2947.6,0.78254377]
[1769318459611,1.992,2948.8,2947.6,0.78254377]
[1769318459813,4.05068065,2948.7,2947.6,0.78254377]
[1769318460005,4.05068065,2948.6,2947.6,0.78254377]
[1769318460205,1.992,2948.8,2947.6,0.78254377]
[1769318460406,4.05068881,2948.7,2947.6,0.78254377]
[1769318460608,4.05068881,2948.6,2947.6,0.78254377]
[1769318460809,1.992,2948.8,2947.6,0.78254377]
[1769318461109,4.05085907,2948.7,2947.6,0.78254377]
[1769318461303,4.05085907,2948.6,2947.6,0.78254377]
[1769318461508,1.992,2948.8,2947.6,0.78254377]
[1769318461708,4.050905,2948.7,2947.6,0.78254377]
[1769318461908,4.050905,2948.6,2947.6,0.78254377]
[1769318462111,2.13911704,2948.8,2947.6,0.78254377]
[1769318462407,4.05089359,2948.7,2947.6,0.78254377]
[1769318462709,4.05089359,2948.6,2947.6,0.78254377]
[1769318462907,2.13911704,2948.8,2947.6,0.78254377]
[1769318463108,4.05088714,2948.7,2947.6,0.78254377]
[1769318463305,4.05088714,2948.6,2947.6,0.78254377]
[1769318463506,2.13911704,2948.8,2947.6,0.78254377]
[1769318463706,4.05087638,2948.7,2947.6,0.78254377]
[1769318463904,4.05087638,2948.6,2947.6,0.78254377]
[1769318464105,2.13911704,2948.8,2947.6,0.78254377]
[1769318464405,4.05087055,2948.7,2947.6,0.78254377]
[1769318464706,4.05087055,2948.6,2947.6,0.78254377]
[1769318464905,2.13911704,2948.8,2947.4,0.00340413]
[1769318465210,4.05084859,2948.7,2947.4,0.00340413]
[1769318465408,4.05084859,2948.6,2947.4,0.00340413]
[1769318465608,2.13911704,2948.8,2947.4,0.00340413]
[1769318465813,4.0508397,2948.7,2947.4,0.00340413]
[1769318466006,4.0508397,2948.6,2947.4,0.00340413]
[1769318466207,0.15059484,2948.7,2947.4,0.00340413]
[1769318466408,4.05083271,2948.6,2947.4,0.00340413]
[1769318466708,0.15059484,2948.7,2947.4,0.00340413]
[1769318466907,4.05082883,2948.6,2947.4,0.00340413]
[1769318467113,0.15059484,2948.7,2947.4,0.00340413]
[1769318467315,4.0508258,2948.6,2947.4,0.00340413]
[1769318467612,0.15059484,2948.7,2947.4,0.00340413]
[1769318467812,4.05082376,2948.6,2947.4,0.00340413]
[1769318468012,0.15059484,2948.7,2947.4,0.00340413]
[1769318468206,4.05082457,2948.6,2947.4,0.00340413]
[1769318468407,0.15059484,2948.7,2947.4,0.00340413]
[1769318468613,4.05082134,2948.6,2947.4,0.00340413]
[1769318468814,0.15059484,2948.7,2947.4,0.00340413]
[1769318469015,4.05082064,2948.6,2947.4,0.00340413]
[1769318469216,0.15059484,2948.7,2947.4,0.00340413]
[1769318469417,4.05081894,2948.6,2947.4,0.00340413]
[1769318469618,0.15059484,2948.7,2947.4,0.00340413]
[1769318469812,4.05081894,2948.6,2947.4,0.00340413]
[1769318470109,0.15059484,2948.7,2947.4,0.00340413]
[1769318470310,4.0508193,2948.6,2947.4,0.00340413]
[1769318470515,0.15059484,2948.7,2947.4,0.00340413]
[1769318470707,4.05082368,2948.6,2947.4,0.00340413]
[1769318470908,0.15059484,2948.7,2947.4,0.00340413]
[1769318471108,4.05082368,2948.6,2947.4,0.00340413]
[1769318471311,0.15059484,2948.7,2947.4,0.00340413]
[1769318471517,4.05082267,2948.6,2947.4,0.00340413]
[1769318471719,0.15059484,2948.7,2947.4,0.00340413]
[1769318471917,4.04580856,2948.6,2947.4,0.00340413]
[1769318472119,0.15059484,2948.7,2947.4,0.00340413]
[1769318472321,4.04581006,2948.6,2947.4,0.00340413]
[1769318472520,0.15059484,2948.7,2947.4,0.00340413]
[1769318472722,4.04581357,2948.6,2947.4,0.00340413]
[1769318472924,0.15059484,2948.7,2947.4,0.00340413]
[1769318473115,4.04582032,2948.6,2947.4,0.00340413]
[1769318473315,0.15059484,2948.7,2947.4,0.00340413]
[1769318473516,4.04583013,2948.6,2947.4,0.00340413]
[1769318473716,0.15059484,2948.7,2947.4,0.00340413]
[1769318473915,4.0458303,2948.6,2947.4,0.00340413]
[1769318474117,0.15059484,2948.7,2947.4,0.00340413]
[1769318474318,4.04597131,2948.6,2947.4,0.00340413]
[1769318474520,0.15059484,2948.7,2947.4,0.00340413]
[1769318474820,4.04597846,2948.6,2947.4,0.00340413]
[1769318475119,0.15059484,2948.7,2947.4,0.00340413]
[1769318475418,4.04598139,2948.6,2947.4,0.00340413]
[1769318475618,0.15059484,2948.7,2947.4,0.00340413]
[1769318475820,4.04598797,2948.6,2947.4,0.00340413]
[1769318476114,0.15059484,2948.7,2947.4,0.00340413]
[1769318476415,4.04600346,2948.6,2947.4,0.00340413]
[1769318476714,0.15059484,2948.7,2947.4,0.00340413]
[1769318476914,4.04601109,2948.6,2947.4,0.00340413]
[1769318477116,0.15059484,2948.7,2947.4,0.00340413]
[1769318477416,4.19497622,2948.6,2947.4,0.00340413]
[1769318477610,0.14896267,2948.6,2947.4,0.00340413]
[1769318492234,4.19537014,2948.5,2947.4,0.00340413]
[1769318492535,0.1513828,2948.5,2947.4,0.00340413]
[1769318506147,0.1513828,2948.5,2947.5,0.78260371]
[1769318517552,0.1513828,2948.5,2947.4,0.00340413]
[1769318518542,0.1513828,2948.5,2947.5,0.78260371]
[1769318521656,0.1513828,2948.5,2947.4,0.00340413]
[1769318524866,0.1513828,2948.5,2947.8,0.78246129]
[1769318545881,0.00242013,2948.5,2947.8,0.78246129]
[1769318565801,0.00242013,2948.5,2948.0,0.78246129]
[1769318569803,0.14339012,2949.1,2948.0,0.78246129]
[1769318570002,4.03582468,2949.0,2948.0,0.78246129]
[1769318570199,4.03582468,2948.9,2948.0,0.78246129]
[1769318570401,0.14339012,2949.1,2948.0,0.78246129]
[1769318570604,4.0355829,2949.0,2948.0,0.78246129]
[1769318570807,4.0355829,2948.9,2948.0,0.78246129]
[1769318571001,0.00306144,2949.0,2948.0,0.78246129]
[1769318571300,4.03558386,2948.9,2948.0,0.78246129]
[1769318571597,0.00306144,2949.0,2948.0,0.78246129]
[1769318571904,4.03537913,2948.9,2948.0,0.78246129]
[1769318572104,0.00306144,2949.0,2948.0,0.78246129]
[1769318572294,4.03537963,2948.9,2948.0,0.78246129]
[1769318572497,0.00306144,2949.0,2948.0,0.78246129]
[1769318572697,4.03522106,2948.9,2948.0,0.78246129]
[1769318572994,0.00306144,2949.0,2948.0,0.78246129]
[1769318573197,4.03525938,2948.9,2948.0,0.78246129]
[1769318573398,0.00306144,2949.0,2948.0,0.78246129]
[1769318573599,4.03514943,2948.9,2948.0,0.78246129]
[1769318573808,0.00306144,2949.0,2948.0,0.78246129]
[1769318574007,4.03515922,2948.9,2948.0,0.78246129]
[1769318574310,0.00306144,2949.0,2948.0,0.78246129]
[1769318574607,4.03502827,2948.9,2948.0,0.78246129]
[1769318574903,0.00306144,2949.0,2948.0,0.78246129]
[1769318575101,4.0351625,2948.9,2948.0,0.78246129]
[1769318575300,0.00306144,2949.0,2948.0,0.78246129]
[1769318575499,4.03484808,2948.9,2948.0,0.78246129]
[1769318575695,0.00306144,2949.0,2948.0,0.78246129]
[1769318575900,4.03484974,2948.9,2948.0,0.78246129]
[1769318576101,0.00306144,2949.0,2948.0,0.78246129]
[1769318576300,4.03485338,2948.9,2948.0,0.78246129]
[1769318576501,0.00306144,2949.0,2948.0,0.78246129]
[1769318577010,0.00306144,2949.0,2948.2,0.78246129]
[1769318584913,0.00306144,2949.0,2947.8,0.7822583]
[1769318604935,0.00306144,2949.0,2947.8,0.92961364]
[1769318626654,0.00306144,2949.0,2947.8,2.13935534]
[1769318633957,0.00306144,2949.0,2947.8,1.992]
[1769318644867,0.00306144,2949.0,2948.1,0.78233034]
[1769318659674,0.00306144,2949.0,2947.9,0.78233034]
[1769318663378,0.00306144,2949.0,2948.0,0.78233034]
[1769318682486,0.15128248,2949.0,2947.8,0.78233034]
[1769318685487,0.78233034,2948.9,2947.6,0.78233034]
[1769318685690,4.03354217,2948.8,2947.6,0.78233034]
[1769318685890,0.78233034,2948.9,2947.6,0.78233034]
[1769318686190,4.03346889,2948.8,2947.6,0.78233034]
[1769318686489,0.78233034,2948.9,2947.6,0.78233034]
[1769318686689,4.03184343,2948.8,2947.6,0.78233034]
[1769318686893,0.78233034,2948.9,2947.6,0.78233034]
[1769318687189,4.03177811,2948.8,2947.6,0.78233034]
[1769318687383,0.78233034,2948.9,2947.6,0.78233034]
[1769318687585,4.0310451,2948.8,2947.6,0.78233034]
[1769318687789,0.78233034,2948.9,2947.6,0.78233034]
[1769318687990,4.03100931,2948.8,2947.6,0.78233034]
[1769318688185,0.93055138,2948.9,2947.6,0.78233034]
[1769318688384,4.03048849,2948.8,2947.6,0.78233034]
[1769318688585,0.93055138,2948.9,2947.6,0.78233034]
[1769318688790,4.03039632,2948.8,2947.6,0.78233034]
[1769318688988,0.93055138,2948.9,2947.6,0.78233034]
[1769318689192,4.03039632,2948.8,2947.6,0.78233034]
[1769318689491,0.93055138,2948.9,2947.6,0.78233034]
[1769318689690,4.02983272,2948.8,2947.6,0.78233034]
[1769318689886,0.93055138,2948.9,2947.6,0.78233034]
[1769318690086,4.02983369,2948.8,2947.6,0.78233034]
[1769318690288,0.93055138,2948.9,2947.6,0.78233034]
[1769318690489,4.02938878,2948.8,2947.6,0.78233034]
[1769318690688,0.14822104,2948.8,2947.6,0.78233034]
[1769318693093,0.14822104,2948.6,2947.4,0.78573447]
[1769318697095,0.14822104,2948.6,2947.4,0.00340413]
[1769318697297,0.14822104,2948.4,2947.4,0.00340413]
[1769318703308,0.14822104,2948.4,2947.4,0.78573447]
[1769318706914,0.14822104,2948.4,2947.4,0.00340413]
[1769318712115,0.32038863,2948.8,2947.4,0.00340413]
[1769318712414,4.17232611,2948.7,2947.4,0.00340413]
[1769318712718,4.02175748,2948.6,2947.4,0.00340413]
[1769318713216,0.15056863,2948.7,2947.4,0.00340413]
[1769318715218,4.02492489,2948.6,2947.4,0.00340413]
[1769318715418,0.15056863,2948.7,2947.4,0.00340413]
[1769318715618,4.02517144,2948.6,2947.4,0.00340413]
[1769318715816,0.15056863,2948.7,2947.4,0.00340413]
[1769318716018,4.02517344,2948.6,2947.4,0.00340413]
[1769318716217,0.15056863,2948.7,2947.4,0.00340413]
[1769318716517,4.02539278,2948.6,2947.4,0.00340413]
[1769318716720,0.15056863,2948.7,2947.4,0.00340413]
[1769318716916,4.02551313,2948.6,2947.4,0.00340413]
[1769318717120,0.15056863,2948.7,2947.4,0.00340413]
[1769318717422,4.02551601,2948.6,2947.4,0.00340413]
[1769318717616,0.15056863,2948.7,2947.4,0.00340413]
[1769318717816,4.02586636,2948.6,2947.4,0.00340413]
[1769318718116,0.15056863,2948.7,2947.4,0.00340413]
[1769318718317,4.16830289,2948.6,2947.4,0.00340413]
[1769318718615,0.14243316,2948.6,2947.4,0.00340413]
[1769318726334,4.02945396,2948.5,2947.4,0.00340413]
[1769318726531,0.14243316,2948.6,2947.4,0.00340413]
[1769318726732,4.02945499,2948.5,2947.4,0.00340413]
[1769318726932,0.14243316,2948.6,2947.4,0.00340413]
[1769318727131,4.17188791,2948.5,2947.4,0.00340413]
[1769318727329,0.14243316,2948.5,2947.4,0.00340413]
[1769318759962,4.03254308,2948.4,2947.4,0.00340413]
[1769318760159,0.1405342,2948.3,2947.4,0.00340413]
[1769318762467,0.00306144,2949.0,2947.8,0.78266082]
[1769318762657,4.03318548,2948.9,2947.8,0.78266082]
[1769318762857,0.00306144,2949.0,2947.8,0.78266082]
[1769318763059,0.00306144,2949.0,2947.8,0.92068166]
[1769318764655,0.14149434,2949.0,2947.6,0.16989]
[1769318765261,0.14149434,2949.0,2947.4,0.78606495]
[1769318768665,0.14149434,2949.0,2947.8,0.78266082]
[1769318768864,0.14149434,2949.0,2948.3,0.78219704]
[1769318774368,0.14149434,2949.0,2948.1,0.78219704]
[1769318785894,0.00306144,2949.0,2948.1,0.78219704]
[1769318794207,0.00306144,2949.0,2947.8,0.92190163]
[1769318794408,0.00306144,2949.0,2948.0,0.78219704]
[1769318797910,0.00306144,2949.0,2948.0,0.92903002]
[1769318798517,6.52744316,2949.8,2948.5,0.92903002]
[1769318798813,4.02783825,2949.7,2948.7,0.78219704]
[1769318799012,4.02783825,2949.6,2948.7,0.78219704]
[1769318799214,4.02783825,2949.5,2948.7,0.78219704]
[1769318799408,0.16975,2950.0,2948.7,0.78219704]
[1769318799409,0.31119316,2950.0,2948.7,0.78219704]
[1769318799611,4.02550062,2949.9,2948.7,0.78219704]
[1769318799811,4.02550062,2949.8,2948.7,0.78219704]
[1769318800007,4.02550062,2949.7,2948.5,0.92903002]
[1769318800207,4.02550062,2949.6,2948.5,0.92903002]
[1769318800409,0.14144316,2949.8,2948.5,0.92903002]
[1769318800614,4.02433596,2949.7,2948.5,0.92903002]
[1769318800815,4.02433596,2949.6,2948.5,0.92903002]
[1769318801015,0.14144316,2949.8,2948.5,0.92903002]
[1769318801308,4.02433303,2949.7,2948.5,0.92903002]
[1769318801516,4.02433303,2949.6,2948.5,0.92903002]
[1769318801715,0.14144316,2949.8,2948.5,0.92903002]
[1769318801914,4.02592652,2949.7,2948.5,0.92903002]
[1769318802108,4.02592652,2949.6,2948.5,0.92903002]
[1769318802310,0.14144316,2949.8,2948.5,0.92903002]
[1769318802514,4.02522611,2949.7,2948.5,0.92903002]
[1769318802715,4.02522611,2949.6,2948.7,0.78219704]
[1769318803014,0.14144316,2949.8,2948.7,0.78219704]
[1769318803309,4.02522631,2949.7,2948.7,0.78219704]
[1769318803517,0.14144316,2949.8,2948.7,0.78219704]
[1769318803518,4.02522631,2949.6,2948.7,0.78219704]
[1769318803711,0.14144316,2949.8,2948.7,0.78219704]
[1769318803911,4.02464166,2949.7,2948.7,0.78219704]
[1769318804110,4.02464166,2949.6,2948.7,0.78219704]
[1769318804413,0.14144316,2949.6,2948.5,0.78219704]
[1769318807617,0.14144316,2949.6,2948.1,0.14683298]
[1769318807814,0.9236402,2949.3,2948.0,0.16986]
[1769318808014,0.14144316,2949.3,2948.1,0.78219704]
[1769318818032,0.14144316,2949.3,2948.3,0.78219704]
[1769318818333,0.14144316,2949.6,2948.3,0.78219704]
[1769318818533,4.02417413,2949.5,2948.3,0.78219704]
[1769318818734,0.14144316,2949.6,2948.3,0.78219704]
[1769318818920,4.02417653,2949.5,2948.3,0.78219704]
[1769318819127,0.14144316,2949.6,2948.3,0.78219704]
[1769318819329,4.02417671,2949.5,2948.3,0.78219704]
[1769318819624,4.02417671,2949.4,2948.3,0.78219704]
[1769318819825,0.14144316,2949.6,2948.3,0.78219704]
[1769318820127,4.02436146,2949.5,2948.3,0.78219704]
[1769318820322,4.02436146,2949.4,2948.3,0.78219704]
[1769318820537,0.14144316,2949.6,2948.3,0.78219704]
[1769318820836,4.02448825,2949.5,2948.3,0.78219704]
[1769318821133,4.02448825,2949.4,2948.3,0.78219704]
[1769318821336,0.14144316,2949.6,2948.3,0.78219704]
[1769318821528,4.02472323,2949.5,2948.3,0.78219704]
[1769318821833,4.02472323,2949.4,2948.3,0.78219704]
[1769318822040,0.14144316,2949.6,2948.3,0.78219704]
[1769318822240,4.02471962,2949.5,2948.3,0.78219704]
[1769318822541,4.02471962,2949.4,2948.3,0.78219704]
[1769318822834,0.14144316,2949.6,2948.3,0.78219704]
[1769318823035,4.02498294,2949.5,2948.3,0.78219704]
[1769318823335,4.02498294,2949.4,2948.3,0.78219704]
[1769318823536,0.14144316,2949.6,2948.3,0.78219704]
[1769318823737,4.02527596,2949.5,2948.3,0.78219704]
[1769318823935,4.02527596,2949.4,2948.3,0.78219704]
[1769318824132,0.92378702,2949.5,2948.3,0.78219704]
[1769318824337,4.0253746,2949.4,2948.3,0.78219704]
[1769318824539,0.92378702,2949.5,2948.3,0.78219704]
[1769318824740,4.02553599,2949.4,2948.3,0.78219704]
[1769318824948,0.92378702,2949.5,2948.3,0.78219704]
[1769318825150,4.02553791,2949.4,2948.3,0.78219704]
[1769318825449,0.92378702,2949.5,2948.3,0.78219704]
[1769318825751,4.02652737,2949.4,2948.3,0.78219704]
[1769318825944,0.92378702,2949.5,2948.1,0.78219704]
[1769318826145,4.0266485,2949.4,2948.1,0.78219704]
[1769318826349,0.92378702,2949.5,2948.1,0.78219704]
[1769318826551,4.02718514,2949.4,2948.1,0.78219704]
[1769318826743,0.92378702,2949.5,2948.1,0.78219704]
[1769318827044,4.02767004,2949.4,2948.1,0.78219704]